fUSD/lending_fUSD_20240426
["ID","MTS","AMOUNT","RATE_DAILY","PERIOD"]
[323590639,1714099855425,-500.0,0.00011506,2]
[323590641,1714099855435,-500.0,0.00011506,2]
[323590644,1714099855448,-500.0,0.00011506,2]
[323590646,1714099855459,-500.0,0.00011506,2]
[323590648,1714099855471,-500.0,0.00011506,2]
[323590650,1714099855483,-500.0,0.00011506,2]
[323590653,1714099855494,-749.02,0.00011506,2]
[323590655,1714099855505,-500.0,0.00011506,2]
[323590657,1714099855517,-500.0,0.00011506,2]
[323590659,1714099855528,-410.00019007,0.00011506,2]
[323590662,1714099855540,-500.0,0.00011506,2]
[323590664,1714099855551,-500.0,0.00011506,2]
[323590666,1714099855563,-503.97,0.00011506,2]
[323590669,1714099855576,-532.78441359,0.00011506,2]
[323590671,1714099855588,-500.0,0.00011506,2]
[323590673,1714099855600,-578.61,0.00011506,2]
[323590676,1714099855612,-215.58876111,0.00011506,2]
[323590678,1714099855624,-500.0,0.00011506,2]
[323590680,1714099855635,-645.49,0.00011506,2]
[323590682,1714099855645,-500.0,0.00011506,2]
[323590684,1714099855655,-500.0,0.00011506,2]
[323590686,1714099855666,-500.0,0.00011506,2]
[323590689,1714099855677,-500.0,0.00011506,2]
[323590691,1714099855689,-494.0,0.00011506,2]
[323590693,1714099855699,-500.0,0.00011506,2]
[323590695,1714099855710,-1007.8,0.00011506,2]
[323590698,1714099855724,-338.83,0.00011506,2]
[323590700,1714099855735,-500.0,0.00011506,2]
[323590702,1714099855745,-500.0,0.00011506,2]
[323590704,1714099855756,-510.12731504,0.00011506,2]
[323590706,1714099855767,-500.0,0.00011506,2]
[323590709,1714099855779,-288.55362737,0.00011506,2]
[323590711,1714099855789,-500.0,0.00011506,2]
[323590713,1714099855800,-500.0,0.00011506,2]
[323590715,1714099855811,-500.0,0.00011506,2]
[323590717,1714099855822,-500.0,0.00011506,2]
[323590720,1714099855835,-500.0,0.00011506,2]
[323590722,1714099855845,-500.0,0.00011506,2]
[323590724,1714099855856,-500.0,0.00011506,2]
[323590726,1714099855869,-660.2,0.00011506,2]
[323590729,1714099855885,-500.0,0.00011506,2]
[323590731,1714099855895,-549.53,0.00011506,2]
[323590734,1714099855906,-500.0,0.00011506,2]
[323590736,1714099855918,-500.0,0.00011506,2]
[323590738,1714099855928,-854.59,0.00011506,2]
[323590740,1714099855939,-500.0,0.00011506,2]
[323590742,1714099855950,-500.0,0.00011506,2]
[323590745,1714099855961,-500.0,0.00011506,2]
[323590747,1714099855972,-833.62,0.00011506,2]
[323590749,1714099855983,-500.0,0.00011506,2]
[323590751,1714099855993,-763.01,0.00011506,2]
[323590753,1714099856004,-555.13,0.00011506,2]
[323590756,1714099856014,-500.0,0.00011506,2]
[323590758,1714099856026,-500.0,0.00011506,2]
[323590760,1714099856036,-500.0,0.00011506,2]
[323590762,1714099856047,-500.0,0.00011506,2]
[323590764,1714099856058,-503.87775101,0.00011506,2]
[323590766,1714099856069,-789.67,0.00011506,2]
[323590769,1714099856081,-557.18,0.00011506,2]
[323590771,1714099856092,-500.0,0.00011506,2]
[323590773,1714099856102,-500.0,0.00011506,2]
[323590775,1714099856113,-500.0,0.00011506,2]
[323590777,1714099856123,-500.0,0.00011506,2]
[323590779,1714099856134,-625.27,0.00011506,2]
[323590782,1714099856145,-308.14819394,0.00011506,2]
[323590784,1714099856156,-500.0,0.00011506,2]
[323590786,1714099856166,-810.55,0.00011506,2]
[323590788,1714099856176,-500.0,0.00011506,2]
[323590790,1714099856187,-500.0,0.00011506,2]
[323590792,1714099856198,-531.31,0.00011506,2]
[323590795,1714099856209,-500.0,0.00011506,2]
[323590797,1714099856219,-500.0,0.00011506,2]
[323590799,1714099856230,-500.0,0.00011506,2]
[323590801,1714099856241,-500.0,0.00011506,2]
[323590803,1714099856251,-583.17722163,0.00011506,2]
[323590806,1714099856262,-500.0,0.00011506,2]
[323590808,1714099856272,-500.0,0.00011506,2]
[323590810,1714099856283,-500.0,0.00011506,2]
[323590812,1714099856293,-553.21450239,0.00011506,2]
[323590814,1714099856304,-500.0,0.00011506,2]
[323590817,1714099856314,-500.0,0.00011506,2]
[323590819,1714099856325,-608.81282647,0.00011506,2]
[323590821,1714099856336,-500.0,0.00011506,2]
[323590823,1714099856346,-500.0,0.00011506,2]
[323590825,1714099856356,-500.0,0.00011506,2]
[323590828,1714099856367,-500.0,0.00011506,2]
[323590830,1714099856378,-500.0,0.00011506,2]
[323590832,1714099856388,-500.0,0.00011506,2]
[323590834,1714099856399,-500.0,0.00011506,2]
[323590835,1714099856413,-500.0,0.00011506,2]
[323590836,1714099856424,-500.0,0.00011506,2]
[323590837,1714099856435,-877.65,0.00011506,2]
[323590838,1714099856447,-500.0,0.00011506,2]
[323590839,1714099856458,-500.0,0.00011506,2]
[323590840,1714099856469,-500.0,0.00011506,2]
[323590841,1714099856479,-500.0,0.00011506,2]
[323590842,1714099856490,-500.0,0.00011506,2]
[323590843,1714099856502,-500.0,0.00011506,2]
[323590844,1714099856513,-500.0,0.00011506,2]
[323590845,1714099856524,-500.0,0.00011506,2]
[323590846,1714099856535,-704.32,0.00011506,2]
[323590848,1714099856546,-500.0,0.00011506,2]
[323590850,1714099856557,-13782.64,0.00011506,2]
[323590852,1714099856567,-500.0,0.00011506,2]
[323590854,1714099856578,-506.30191452,0.00011506,2]
[323590856,1714099856590,-570.59,0.00011506,2]
[323590858,1714099856603,-500.0,0.00011506,2]
[323590860,1714099856615,-500.0,0.00011506,2]
[323590863,1714099856626,-500.0,0.00011506,2]
[323590865,1714099856637,-500.0,0.00011506,2]
[323590867,1714099856648,-500.0,0.00011506,2]
[323590869,1714099856660,-500.0,0.00011506,2]
[323590871,1714099856671,-990.34,0.00011506,2]
[323590873,1714099856682,-500.0,0.00011506,2]
[323590876,1714099856693,-500.0,0.00011506,2]
[323590878,1714099856705,-500.0,0.00011506,2]
[323590880,1714099856715,-500.0,0.00011506,2]
[323590882,1714099856726,-531.62,0.00011506,2]
[323590884,1714099856738,-797.89,0.00011506,2]
[323590886,1714099856750,-500.0,0.00011506,2]
[323590888,1714099856761,-500.0,0.00011506,2]
[323590891,1714099856772,-500.0,0.00011506,2]
[323590893,1714099856783,-500.0,0.00011506,2]
[323590895,1714099856794,-500.0,0.00011506,2]
[323590897,1714099856806,-792.52,0.00011506,2]
[323590899,1714099856817,-500.0,0.00011506,2]
[323590901,1714099856829,-500.0,0.00011506,2]
[323590904,1714099856841,-500.0,0.00011506,2]
[323590906,1714099856854,-539.67388094,0.00011506,2]
[323590908,1714099856865,-500.0,0.00011506,2]
[323590910,1714099856877,-500.0,0.00011506,2]
[323590912,1714099856888,-500.0,0.00011506,2]
[323590915,1714099856901,-713.68,0.00011506,2]
[323590917,1714099856913,-500.0,0.00011506,2]
[323590919,1714099856925,-500.0,0.00011506,2]
[323590921,1714099856939,-4326.92,0.00011506,2]
[323590923,1714099856950,-500.0,0.00011506,2]
[323590925,1714099856962,-500.0,0.00011506,2]
[323590928,1714099856973,-513.88290293,0.00011506,2]
[323590930,1714099856986,-500.0,0.00011506,2]
[323590932,1714099856997,-500.0,0.00011506,2]
[323590934,1714099857009,-819.73,0.00011506,2]
[323590936,1714099857020,-500.0,0.00011506,2]
[323590938,1714099857031,-500.0,0.00011506,2]
[323590940,1714099857043,-500.0,0.00011506,2]
[323590943,1714099857055,-500.0,0.00011506,2]
[323590945,1714099857066,-1184.97,0.00011506,2]
[323590947,1714099857078,-500.0,0.00011506,2]
[323590949,1714099857089,-500.0,0.00011506,2]
[323590951,1714099857101,-500.0,0.00011506,2]
[323590953,1714099857112,-1008.35,0.00011506,2]
[323590955,1714099857123,-670.47,0.00011506,2]
[323590957,1714099857135,-500.0,0.00011506,2]
[323590960,1714099857147,-590.31,0.00011506,2]
[323590962,1714099857159,-487.31,0.00011506,2]
[323590964,1714099857171,-500.0,0.00011506,2]
[323590966,1714099857183,-1493.54,0.00011506,2]
[323590968,1714099857194,-500.0,0.00011506,2]
[323590970,1714099857206,-500.0,0.00011506,2]
[323590972,1714099857217,-500.0,0.00011506,2]
[323590975,1714099857229,-1078.64,0.00011506,2]
[323590977,1714099857239,-910.8,0.00011506,2]
[323590979,1714099857251,-507.11669426,0.00011506,2]
[323590981,1714099857262,-500.0,0.00011506,2]
[323590983,1714099857274,-500.0,0.00011506,2]
[323590985,1714099857287,-840.23,0.00011506,2]
[323590987,1714099857298,-500.0,0.00011506,2]
[323590990,1714099857311,-441.32352303,0.00011506,2]
[323590992,1714099857323,-500.0,0.00011506,2]
[323590994,1714099857334,-500.0,0.00011506,2]
[323590996,1714099857346,-500.0,0.00011506,2]
[323590998,1714099857358,-500.0,0.00011506,2]
[323591000,1714099857368,-1154.79,0.00011506,2]
[323591002,1714099857379,-740.7,0.00011506,2]
[323591004,1714099857389,-500.0,0.00011506,2]
[323591007,1714099857400,-500.0,0.00011506,2]
[323591009,1714099857411,-1489.27,0.00011506,2]
[323591011,1714099857423,-511.09280892,0.00011506,2]
[323591013,1714099857434,-500.0,0.00011506,2]
[323591015,1714099857446,-500.0,0.00011506,2]
[323591017,1714099857459,-500.0,0.00011506,2]
[323591019,1714099857469,-729.03,0.00011506,2]
[323591021,1714099857481,-1253.42,0.00011506,2]
[323591024,1714099857492,-500.0,0.00011506,2]
[323591026,1714099857503,-500.0,0.00011506,2]
[323591028,1714099857514,-510.86,0.00011506,2]
[323591029,1714099857526,-500.0,0.00011506,2]
[323591031,1714099857537,-500.0,0.00011506,2]
[323591034,1714099857549,-500.0,0.00011506,2]
[323591036,1714099857561,-1027.35,0.00011506,2]
[323591038,1714099857571,-2782.5,0.00011506,2]
[323591040,1714099857583,-500.0,0.00011506,2]
[323591042,1714099857594,-500.0,0.00011506,2]
[323591044,1714099857604,-500.0,0.00011506,2]
[323591046,1714099857615,-10479.31,0.00011506,2]
[323591048,1714099857628,-1955.94,0.00011506,2]
[323591050,1714099857638,-1119.24,0.00011506,2]
[323591052,1714099857649,-500.0,0.00011506,2]
[323591054,1714099857660,-500.0,0.00011506,2]
[323591056,1714099857670,-598.89,0.00011506,2]
[323591058,1714099857681,-500.0,0.00011506,2]
[323591060,1714099857692,-767.18,0.00011506,2]
[323591063,1714099857703,-971.45,0.00011506,2]
[323591065,1714099857714,-500.0,0.00011506,2]
[323591067,1714099857724,-500.0,0.00011506,2]
[323591069,1714099857735,-500.0,0.00011506,2]
[323591071,1714099857747,-619.3,0.00011506,2]
[323591073,1714099857758,-710.38,0.00011506,2]
[323591075,1714099857768,-500.0,0.00011506,2]
[323591077,1714099857780,-500.0,0.00011506,2]
[323591080,1714099857791,-500.0,0.00011506,2]
[323591082,1714099857802,-500.0,0.00011506,2]
[323591084,1714099857813,-500.0,0.00011506,2]
[323591086,1714099857824,-338.00790797,0.00011506,2]
[323591088,1714099857836,-500.0,0.00011506,2]
[323591090,1714099857846,-539.49,0.00011506,2]
[323591092,1714099857857,-500.0,0.00011506,2]
[323591094,1714099857867,-500.0,0.00011506,2]
[323591096,1714099857879,-500.0,0.00011506,2]
[323591098,1714099857891,-500.0,0.00011506,2]
[323591100,1714099857902,-500.0,0.00011506,2]
[323591102,1714099857913,-500.0,0.00011506,2]
[323591104,1714099857924,-1031.65,0.00011506,2]
[323591107,1714099857937,-500.0,0.00011506,2]
[323591109,1714099857949,-3775.7,0.00011506,2]
[323591111,1714099857961,-500.0,0.00011506,2]
[323591113,1714099857971,-500.0,0.00011506,2]
[323591115,1714099857983,-500.0,0.00011506,2]
[323591117,1714099857994,-500.0,0.00011506,2]
[323591119,1714099858005,-500.0,0.00011506,2]
[323591122,1714099858016,-702.49,0.00011506,2]
[323591124,1714099858027,-500.0,0.00011506,2]
[323591126,1714099858038,-500.0,0.00011506,2]
[323591128,1714099858049,-500.0,0.00011506,2]
[323591130,1714099858058,-500.0,0.00011506,2]
[323591132,1714099858068,-500.0,0.00011506,2]
[323591134,1714099858077,-500.0,0.00011506,2]
[323591136,1714099858086,-500.0,0.00011506,2]
[323591138,1714099858096,-533.97,0.00011506,2]
[323591140,1714099858107,-500.0,0.00011506,2]
[323591142,1714099858115,-150.0,0.00011506,2]
[323591144,1714099858125,-500.0,0.00011506,2]
[323591146,1714099858136,-500.0,0.00011506,2]
[323591148,1714099858146,-556.24,0.00011506,2]
[323591150,1714099858158,-1391.33,0.00011506,2]
[323591152,1714099858167,-871.6,0.00011506,2]
[323591154,1714099858178,-627.06,0.00011506,2]
[323591156,1714099858188,-1354.26,0.00011506,2]
[323591158,1714099858198,-500.0,0.00011506,2]
[323591204,1714099858623,-500.0,0.00011506,2]
[323591209,1714099858659,-500.0,0.00011506,2]
[323591212,1714099858677,-500.0,0.00011506,2]
[323591214,1714099858694,-500.0,0.00011506,2]
[323591216,1714099858703,-607.48,0.00011506,2]
[323591218,1714099858712,-500.0,0.00011506,2]
[323591220,1714099858721,-500.0,0.00011506,2]
[323591222,1714099858730,-500.0,0.00011506,2]
[323591225,1714099858740,-500.0,0.00011506,2]
[323591226,1714099858750,-546.67,0.00011506,2]
[323591229,1714099858760,-330.84602722,0.00011506,2]
[323591231,1714099858769,-500.0,0.00011506,2]
[323591233,1714099858779,-1291.15,0.00011506,2]
[323591235,1714099858788,-1192.27,0.00011506,2]
[323591237,1714099858797,-500.0,0.00011506,2]
[323591239,1714099858806,-500.0,0.00011506,2]
[323591241,1714099858815,-500.0,0.00011506,2]
[323591243,1714099858826,-500.0,0.00011506,2]
[323591244,1714099858835,-500.0,0.00011506,2]
[323591247,1714099858844,-500.0,0.00011506,2]
[323591249,1714099858854,-614.36,0.00011506,2]
[323591251,1714099858864,-500.0,0.00011506,2]
[323591253,1714099858872,-500.0,0.00011506,2]
[323591255,1714099858881,-500.0,0.00011506,2]
[323591257,1714099858890,-500.0,0.00011506,2]
[323591259,1714099858900,-500.0,0.00011506,2]
[323591261,1714099858908,-851.07,0.00011506,2]
[323591262,1714099858918,-500.0,0.00011506,2]
[323591264,1714099858927,-500.0,0.00011506,2]
[323591266,1714099858935,-3689.16,0.00011506,2]
[323591268,1714099858945,-523.76,0.00011506,2]
[323591270,1714099858954,-500.0,0.00011506,2]
[323591272,1714099858964,-2886.58,0.00011506,2]
[323591275,1714099858973,-500.0,0.00011506,2]
[323591277,1714099858983,-500.0,0.00011506,2]
[323591278,1714099858991,-500.0,0.00011506,2]
[323591279,1714099859001,-500.0,0.00011506,2]
[323591280,1714099859010,-331.27607536,0.00011506,2]
[323591281,1714099859022,-810.66,0.00011506,2]
[323591282,1714099859031,-1427.24,0.00011506,2]
[323591283,1714099859040,-500.0,0.00011506,2]
[323591284,1714099859049,-500.0,0.00011506,2]
[323591285,1714099859058,-500.0,0.00011506,2]
[323591286,1714099859067,-500.0,0.00011506,2]
[323591287,1714099859076,-5355.8,0.00011506,2]
[323591288,1714099859086,-500.0,0.00011506,2]
[323591290,1714099859096,-500.0,0.00011506,2]
[323591292,1714099859105,-2934.42,0.00011506,2]
[323591294,1714099859114,-593.35,0.00011506,2]
[323591296,1714099859123,-500.0,0.00011506,2]
[323591298,1714099859131,-500.0,0.00011506,2]
[323591300,1714099859141,-561.06,0.00011506,2]
[323591302,1714099859150,-500.0,0.00011506,2]
[323591304,1714099859160,-500.0,0.00011506,2]
[323591306,1714099859169,-500.0,0.00011506,2]
[323591308,1714099859178,-500.0,0.00011506,2]
[323591310,1714099859186,-500.0,0.00011506,2]
[323591312,1714099859196,-3906.26,0.00011506,2]
[323591314,1714099859205,-500.0,0.00011506,2]
[323591316,1714099859214,-500.0,0.00011506,2]
[323591318,1714099859223,-942.63,0.00011506,2]
[323591320,1714099859233,-883.44,0.00011506,2]
[323591322,1714099859241,-500.0,0.00011506,2]
[323591324,1714099859250,-500.0,0.00011506,2]
[323591326,1714099859259,-500.0,0.00011506,2]
[323591327,1714099859270,-500.0,0.00011506,2]
[323591329,1714099859279,-1001.99,0.00011506,2]
[323591332,1714099859288,-500.0,0.00011506,2]
[323591334,1714099859297,-1409.08,0.00011506,2]
[323591335,1714099859309,-500.0,0.00011506,2]
[323591338,1714099859319,-500.0,0.00011506,2]
[323591340,1714099859330,-500.0,0.00011506,2]
[323591342,1714099859340,-500.0,0.00011506,2]
[323591344,1714099859350,-1201.76,0.00011506,2]
[323591345,1714099859359,-500.0,0.00011506,2]
[323591347,1714099859370,-566.12,0.00011506,2]
[323591349,1714099859379,-500.0,0.00011506,2]
[323591352,1714099859389,-500.0,0.00011506,2]
[323591353,1714099859398,-500.0,0.00011506,2]
[323591355,1714099859408,-550.32,0.00011506,2]
[323591357,1714099859420,-500.0,0.00011506,2]
[323591360,1714099859430,-500.0,0.00011506,2]
[323591361,1714099859439,-544.68187657,0.00011506,2]
[323591363,1714099859449,-500.0,0.00011506,2]
[323591366,1714099859458,-5397.88,0.00011506,2]
[323591368,1714099859468,-744.48,0.00011506,2]
[323591370,1714099859477,-500.0,0.00011506,2]
[323591372,1714099859488,-2362.23,0.00011506,2]
[323591374,1714099859497,-500.0,0.00011506,2]
[323591376,1714099859506,-614.68,0.00011506,2]
[323591377,1714099859516,-500.0,0.00011506,2]
[323591380,1714099859526,-689.84,0.00011506,2]
[323591381,1714099859535,-500.0,0.00011506,2]
[323591384,1714099859545,-852.38,0.00011506,2]
[323591385,1714099859555,-2544.91,0.00011506,2]
[323591387,1714099859564,-500.0,0.00011506,2]
[323591389,1714099859574,-1558.98,0.00011506,2]
[323591392,1714099859584,-585.64,0.00011506,2]
[323591393,1714099859594,-1437.91,0.00011506,2]
[323591395,1714099859603,-500.0,0.00011506,2]
[323591398,1714099859612,-3502.25,0.00011506,2]
[323591400,1714099859621,-500.0,0.00011506,2]
[323591402,1714099859631,-761.7,0.00011506,2]
[323591404,1714099859641,-1067.79,0.00011506,2]
[323591406,1714099859649,-500.0,0.00011506,2]
[323591408,1714099859658,-500.0,0.00011506,2]
[323591409,1714099859668,-1218.06,0.00011506,2]
[323591411,1714099859676,-531.33,0.00011506,2]
[323591413,1714099859686,-7411.09,0.00011506,2]
[323591415,1714099859696,-628.25,0.00011506,2]
[323591417,1714099859705,-500.0,0.00011506,2]
[323591419,1714099859715,-500.0,0.00011506,2]
[323591421,1714099859724,-749.11,0.00011506,2]
[323591423,1714099859733,-500.0,0.00011506,2]
[323591425,1714099859742,-708.99534153,0.00011506,2]
[323591427,1714099859751,-6528.54627523,0.00011547,2]
[323591429,1714099859760,-165.76896418,0.00011553,2]
[323591431,1714099859770,-150.0,0.00011612,2]
[323591434,1714099859779,-294.1,0.0001163,2]
[323591435,1714099859788,-150.0,0.00011648,2]
[323591437,1714099859797,-164.41867535,0.00011662,2]
[323591439,1714099859807,-1000.0,0.00011685,2]
[323591441,1714099859816,-500.0,0.00011685,2]
[323591443,1714099859828,-1000.0,0.00011685,2]
[323591445,1714099859838,-1000.0,0.00011686,2]
[323591447,1714099859847,-1000.0,0.00011686,2]
[323591449,1714099859856,-1000.0,0.00011686,2]
[323591451,1714099859865,-500.0,0.00011686,2]
[323591453,1714099859874,-500.0,0.00011686,2]
[323591455,1714099859883,-1004.0,0.000117,2]
[323591458,1714099859893,-150.0,0.00011708,2]
[323591460,1714099859902,-169.1356673,0.00011721,2]
[323591462,1714099859911,-294.1,0.0001175,2]
[323591463,1714099859920,-2030.0695864,0.00011769,2]
[323591466,1714099859930,-17319.3517216,0.00011769,2]
[323591468,1714099859939,-258.99389931,0.0001177,2]
[323591470,1714099859949,-1849.78,0.00011777,2]
[323591472,1714099859958,-2555.28,0.00011777,2]
[323591474,1714099859967,-834.4,0.00011777,2]
[323591476,1714099859976,-178.27181865,0.00011778,2]
[323591478,1714099859986,-894.66007363,0.00011778,2]
[323591480,1714099859995,-788.44944404,0.00011778,2]
[323591482,1714099860004,-500.0,0.00011778,2]
[323591484,1714099860013,-500.0,0.00011778,2]
[323591486,1714099860021,-500.0,0.00011778,2]
[323591488,1714099860030,-500.0,0.00011778,2]
[323591489,1714099860040,-620.89001364,0.00011778,2]
[323591492,1714099860049,-626.72,0.00011778,2]
[323591494,1714099860059,-500.0,0.00011778,2]
[323591496,1714099860068,-500.0,0.00011778,2]
[323591498,1714099860078,-500.0,0.00011778,2]
[323591500,1714099860087,-500.0,0.00011778,2]
[323591501,1714099860097,-500.0,0.00011778,2]
[323591504,1714099860106,-500.0,0.00011778,2]
[323591506,1714099860115,-500.0,0.00011778,2]
[323591508,1714099860124,-500.0,0.00011778,2]
[323591510,1714099860133,-500.0,0.00011778,2]
[323591512,1714099860142,-500.0,0.00011778,2]
[323591514,1714099860151,-500.0,0.00011778,2]
[323591516,1714099860160,-500.0,0.00011778,2]
[323591518,1714099860169,-500.0,0.00011778,2]
[323591520,1714099860178,-500.0,0.00011778,2]
[323591522,1714099860187,-500.0,0.00011778,2]
[323591524,1714099860196,-204.56185484,0.00011778,2]
[323591526,1714099860205,-500.0,0.00011778,2]
[323591528,1714099860214,-500.0,0.00011778,2]
[323591530,1714099860223,-500.0,0.00011778,2]
[323591532,1714099860233,-500.0,0.00011778,2]
[323591534,1714099860242,-500.0,0.00011778,2]
[323591536,1714099860251,-500.0,0.00011778,2]
[323591538,1714099860261,-533.83492304,0.00011778,2]
[323591540,1714099860270,-500.0,0.00011778,2]
[323591542,1714099860279,-500.0,0.00011778,2]
[323591544,1714099860288,-2979.70455809,0.00011779,2]
[323591546,1714099860297,-500.0,0.0001178,2]
[323591548,1714099860306,-804.83,0.0001178,2]
[323591550,1714099860315,-500.0,0.0001178,2]
[323591552,1714099860324,-500.0,0.0001178,2]
[323591554,1714099860335,-500.0,0.0001178,2]
[323591556,1714099860344,-500.0,0.0001178,2]
[323591558,1714099860353,-500.0,0.0001178,2]
[323591560,1714099860362,-362.57283443,0.0001178,2]
[323591562,1714099860371,-500.0,0.0001178,2]
[323591564,1714099860380,-500.0,0.0001178,2]
[323591566,1714099860390,-500.0,0.0001178,2]
[323591568,1714099860399,-500.0,0.0001178,2]
[323591570,1714099860410,-500.0,0.0001178,2]
[323591571,1714099860421,-500.0,0.0001178,2]
[323591574,1714099860431,-510.27,0.0001178,2]
[323591576,1714099860440,-500.0,0.0001178,2]
[323591578,1714099860451,-262.64430087,0.0001178,2]
[323591580,1714099860460,-620.91,0.0001178,2]
[323591582,1714099860469,-500.0,0.0001178,2]
[323591584,1714099860478,-500.0,0.0001178,2]
[323591586,1714099860489,-500.0,0.0001178,2]
[323591588,1714099860499,-790.04,0.0001178,2]
[323591590,1714099860508,-500.0,0.0001178,2]
[323591592,1714099860517,-500.0,0.0001178,2]
[323591594,1714099860526,-500.0,0.0001178,2]
[323591596,1714099860535,-876.49,0.0001178,2]
[323591598,1714099860544,-881.46,0.0001178,2]
[323591600,1714099860553,-500.0,0.0001178,2]
[323591602,1714099860562,-1093.86,0.0001178,2]
[323591604,1714099860571,-607.43,0.0001178,2]
[323591606,1714099860581,-500.0,0.0001178,2]
[323591608,1714099860591,-500.0,0.0001178,2]
[323591610,1714099860599,-431.44824412,0.0001178,2]
[323591612,1714099860608,-500.0,0.0001178,2]
[323591614,1714099860617,-380.00609593,0.0001178,2]
[323591616,1714099860626,-845.83,0.0001178,2]
[323591618,1714099860636,-500.0,0.0001178,2]
[323591620,1714099860646,-500.0,0.0001178,2]
[323591622,1714099860655,-500.0,0.0001178,2]
[323591624,1714099860665,-500.0,0.0001178,2]
[323591626,1714099860674,-737.82,0.0001178,2]
[323591628,1714099860684,-500.0,0.0001178,2]
[323591630,1714099860693,-500.0,0.0001178,2]
[323591632,1714099860703,-604.4,0.0001178,2]
[323591634,1714099860712,-562.26636741,0.0001178,2]
[323591636,1714099860721,-835.54,0.0001178,2]
[323591638,1714099860731,-500.0,0.0001178,2]
[323591640,1714099860740,-500.0,0.0001178,2]
[323591642,1714099860750,-500.0,0.0001178,2]
[323591644,1714099860759,-500.0,0.0001178,2]
[323591646,1714099860768,-500.0,0.0001178,2]
[323591648,1714099860777,-500.0,0.0001178,2]
[323591650,1714099860787,-500.0,0.0001178,2]
[323591652,1714099860796,-500.0,0.0001178,2]
[323591654,1714099860805,-802.45,0.0001178,2]
[323591656,1714099860814,-500.0,0.0001178,2]
[323591658,1714099860824,-500.0,0.0001178,2]
[323591660,1714099860838,-500.0,0.0001178,2]
[323591662,1714099860848,-500.0,0.0001178,2]
[323591664,1714099860859,-500.0,0.0001178,2]
[323591666,1714099860868,-500.0,0.0001178,2]
[323591668,1714099860878,-500.0,0.0001178,2]
[323591671,1714099860888,-500.0,0.0001178,2]
[323591673,1714099860898,-515.79,0.0001178,2]
[323591675,1714099860907,-500.0,0.0001178,2]
[323591677,1714099860916,-500.0,0.0001178,2]
[323591678,1714099860926,-500.0,0.0001178,2]
[323591681,1714099860935,-500.0,0.0001178,2]
[323591683,1714099860945,-227.77427361,0.0001178,2]
[323591685,1714099860954,-500.0,0.0001178,2]
[323591687,1714099860963,-617.91,0.0001178,2]
[323591689,1714099860973,-753.79,0.0001178,2]
[323591691,1714099860982,-500.0,0.0001178,2]
[323591692,1714099860993,-500.0,0.0001178,2]
[323591695,1714099861004,-965.82,0.0001178,2]
[323591697,1714099861013,-500.0,0.0001178,2]
[323591699,1714099861022,-500.0,0.0001178,2]